fUSD/lending_fUSD_20240715
["ID","MTS","AMOUNT","RATE_DAILY","PERIOD"]
[332214800,1721043031951,-757.19605409,0.00011199,2]
[332214801,1721043031960,-202.96927408,0.00011199,2]
[332214802,1721043031971,-492.55741441,0.00011199,2]
[332214803,1721043031980,-14624.53040501,0.000118,2]
[332214804,1721043031989,-425.26598198,0.00012314,2]
[332214805,1721043031998,-425.26598198,0.00012314,2]
[332214806,1721043032008,-193.83550993,0.00012314,2]
[332214807,1721043032017,-2859.56,0.00012411,2]
[332214808,1721043032027,-250.0,0.00012483,2]
[332214809,1721043032036,-6041.22055094,0.0001259,2]
[332214810,1721043032045,-250.0,0.00012624,2]
[332214811,1721043032054,-1000.0,0.00012794,2]
[332214812,1721043032063,-172.85,0.00012794,2]
[332214813,1721043032072,-197.66,0.00012819,2]
[332214814,1721043032081,-501.84,0.0001314,2]
[332214815,1721043032091,-1984.78330199,0.00013472,2]
[332214816,1721043032100,-156.0,0.00013516,2]
[332214817,1721043032109,-267.84720901,0.00013693,2]
[332214818,1721043032118,-886.33,0.00013698,2]
[332214819,1721043032127,-500.0,0.00013698,2]
[332214821,1721043032136,-500.0,0.00013698,2]
[332214823,1721043032145,-500.0,0.00013698,2]
[332214824,1721043032154,-500.0,0.00013698,2]
[332214825,1721043032163,-455.99,0.00013698,2]
[332214826,1721043032172,-500.0,0.00013698,2]
[332214828,1721043032181,-500.0,0.00013698,2]
[332214830,1721043032190,-500.0,0.00013698,2]
[332214832,1721043032199,-500.0,0.00013698,2]
[332214834,1721043032208,-500.0,0.00013698,2]
[332214835,1721043032217,-500.0,0.00013698,2]
[332214836,1721043032227,-262.19,0.00013699,2]
[332214837,1721043032237,-250.0,0.00013699,2]
[332214838,1721043032247,-501.3,0.00013699,2]
[332214839,1721043032256,-304.45592901,0.00013699,2]
[332214840,1721043032266,-2358.93,0.00013699,2]
[332214841,1721043032276,-50061.6523,0.000137,2]
[332214842,1721043032286,-500.0,0.00013752,2]
[332214843,1721043032295,-1395.15,0.00013752,2]
[332214844,1721043032304,-886.33,0.00013753,2]
[332214845,1721043032314,-500.0,0.00013753,2]
[332214846,1721043032324,-500.0,0.00013753,2]
[332214847,1721043032333,-239.89,0.00013753,2]
[332214848,1721043032343,-500.0,0.00013753,2]
[332214849,1721043032353,-500.0,0.00013753,2]
[332214850,1721043032363,-500.0,0.00013753,2]
[332214851,1721043032371,-500.0,0.00013753,2]
[332214852,1721043032381,-500.0,0.00013753,2]
[332214853,1721043032391,-500.0,0.00013753,2]
[332214854,1721043032400,-500.0,0.00013753,2]
[332214855,1721043032409,-501.3,0.00013754,2]
[332214856,1721043032419,-2358.93,0.00013754,2]
[332214857,1721043032428,-174.09974943,0.00013759,2]
[332214858,1721043032437,-936.992,0.0001376,2]
[332214859,1721043032447,-6899.623,0.0001376,2]
[332214860,1721043032457,-32791.25380921,0.00013788,2]
[332214861,1721043032467,-152.89497319,0.0001379,2]
[332214862,1721043032476,-152.89497319,0.0001379,2]
[332214863,1721043032486,-67288.4962553,0.00013793,2]
[332214864,1721043032495,-10559.0609443,0.00013793,2]
[332214865,1721043032505,-17098.248867,0.00013797,2]
[332214866,1721043032514,-500.0,0.00013799,2]
[332214867,1721043032524,-254.89046332,0.00013799,2]
[332214868,1721043032533,-478.42753427,0.00013799,2]
[332214869,1721043032542,-500.0,0.00013799,2]
[332214870,1721043032551,-449.73352528,0.00013799,2]
[332214871,1721043032560,-525.23,0.00013799,2]
[332214872,1721043032569,-378.31717133,0.00013799,2]
[332214873,1721043032578,-500.0,0.00013799,2]
[332214874,1721043032587,-441.53993792,0.00013799,2]
[332214875,1721043032597,-441.53993792,0.00013799,2]
[332214876,1721043032606,-441.53993792,0.00013799,2]
[332214877,1721043032619,-441.53993792,0.00013799,2]
[332214878,1721043032628,-441.53993792,0.00013799,2]
[332214879,1721043032637,-441.53993792,0.00013799,2]
[332214880,1721043032646,-441.53993792,0.00013799,2]
[332214881,1721043032656,-236686.21247996,0.000138,2]
[332214882,1721043032669,-4462.52367967,0.000138,2]
[332214883,1721043032681,-517.85511205,0.000138,2]
[332214884,1721043032694,-820.87408869,0.000138,2]
[332214885,1721043032890,-2012.29595931,0.000138,2]
[332214886,1721043032902,-2783.40559046,0.000138,2]
[332214887,1721043032913,-820.09108392,0.000138,2]
[332214888,1721043032924,-1344.78568796,0.000138,2]
[332214889,1721043032935,-6728.94505261,0.000138,2]
[332214890,1721043032946,-76056.25308001,0.000138,2]
[332214891,1721043032963,-1325.8073129,0.000138,2]
[332214892,1721043032974,-919.32000046,0.000138,2]
[332214893,1721043032985,-630.85,0.000138,2]
[332214894,1721043032999,-1420.86797097,0.000138,2]
[332214895,1721043033010,-2109.43741355,0.000138,2]
[332214896,1721043033028,-4782.84240991,0.000138,2]
[332214897,1721043033040,-290183.18145503,0.000138,2]
[332214900,1721043037713,-358.33485164,0.000138,2]
[332214901,1721043037724,-282.04696975,0.000138,2]
[332214902,1721043037736,-566.76354058,0.000138,2]
[332214903,1721043037751,-4552.91952645,0.000138,2]
[332214904,1721043037786,-778.63202683,0.000138,2]
[332214905,1721043037798,-46985.19907834,0.000138,2]
[332214906,1721043037819,-1251.34130064,0.000138,2]
[332214907,1721043037830,-729.82228752,0.000138,2]
[332214908,1721043037842,-1009.91881608,0.000138,2]
[332214909,1721043037854,-129751.53898938,0.000138,2]
[332214910,1721043037865,-2183.16426548,0.000138,2]
[332214911,1721043037876,-5556.73676619,0.000138,2]
[332214912,1721043037887,-209740.06350283,0.000138,2]
[332214913,1721043037898,-3249.66649722,0.000138,2]
[332214914,1721043037911,-785.60005,0.000138,2]
[332214915,1721043037923,-149343.46614391,0.000138,2]
[332214916,1721043037934,-94507.32343886,0.000138,2]
[332214917,1721043037944,-150.0,0.000138,2]
[332214918,1721043037953,-2500.0,0.000138,2]
[332214919,1721043037962,-479.05500024,0.000138,3]
[332214920,1721043037972,-3000.0,0.000138,2]
[332214921,1721043037982,-250.0,0.000138,3]
[332214922,1721043037991,-250.0,0.000138,3]
[332214923,1721043038000,-500.0,0.00013807,2]
[332214924,1721043038010,-1395.15,0.00013807,2]
[332214925,1721043038019,-886.33,0.00013808,2]
[332214926,1721043038031,-500.0,0.00013808,2]
[332214927,1721043038043,-500.0,0.00013808,2]
[332214929,1721043038052,-500.0,0.00013808,2]
[332214931,1721043038062,-500.0,0.00013808,2]
[332214933,1721043038071,-436.23178877,0.00013808,2]
[332214935,1721043038080,-500.0,0.00013808,2]
[332214937,1721043038090,-500.0,0.00013808,2]
[332214939,1721043038099,-500.0,0.00013808,2]
[332214940,1721043038108,-500.0,0.00013808,2]
[332214942,1721043038118,-501.3,0.00013809,2]
[332214944,1721043038127,-2358.93,0.00013809,2]
[332214946,1721043038137,-296.31122229,0.00013825,2]
[332214948,1721043038147,-227.37751483,0.00013849,2]
[332214950,1721043038157,-616.33184579,0.00013849,2]
[332214952,1721043038166,-525.23,0.00013854,2]
[332214954,1721043038176,-500.0,0.00013854,2]
[332214956,1721043038185,-500.0,0.00013862,2]
[332214958,1721043038195,-1395.15,0.00013862,2]
[332214960,1721043038204,-886.33,0.00013863,2]
[332214962,1721043038213,-439.93,0.00013863,2]
[332214964,1721043038223,-500.0,0.00013863,2]
[332214966,1721043038232,-500.0,0.00013863,2]
[332214968,1721043038242,-500.0,0.00013863,2]
[332214970,1721043038251,-500.0,0.00013863,2]
[332214972,1721043038261,-500.0,0.00013863,2]
[332214974,1721043038270,-500.0,0.00013863,2]
[332214976,1721043038279,-500.0,0.00013863,2]
[332214978,1721043038288,-501.3,0.00013864,2]
[332214980,1721043038297,-2358.93,0.00013864,2]
[332214982,1721043038306,-500.0,0.00013888,2]
[332214984,1721043038315,-200.0,0.00013888,2]
[332214986,1721043038325,-616.92384194,0.00013889,2]
[332214988,1721043038334,-290.64661986,0.00013889,2]
[332214990,1721043038344,-209.03744674,0.00013899,2]
[332214992,1721043038353,-685.81454762,0.00013899,2]
[332214994,1721043038362,-155.0,0.00013899,2]
[332214996,1721043038372,-1000.0,0.000139,2]
[332214998,1721043038382,-150.0,0.000139,2]
[332215000,1721043038390,-1000.0,0.000139,2]
[332215002,1721043038400,-441.53993792,0.000139,2]
[332215004,1721043038410,-152.89497319,0.000139,2]
[332215006,1721043038419,-1000.0,0.000139,2]
[332215008,1721043038429,-425.85158922,0.000139,2]
[332215010,1721043038439,-1328.51254524,0.000139,2]
[332215012,1721043038448,-525.23,0.00013909,2]
[332215014,1721043038457,-500.0,0.00013909,2]
[332215016,1721043038467,-500.0,0.00013916,2]
[332215017,1721043038476,-624.58728403,0.00013916,2]
[332215020,1721043038488,-361.675,0.00013916,2]
[332215022,1721043038499,-408.88771597,0.00013916,2]
[332215024,1721043038509,-886.33,0.00013917,2]
[332215026,1721043038519,-500.0,0.00013917,2]
[332215028,1721043038530,-500.0,0.00013917,2]
[332215030,1721043038539,-500.0,0.00013917,2]
[332215032,1721043038549,-500.0,0.00013917,2]
[332215034,1721043038559,-500.0,0.00013917,2]
[332215036,1721043038569,-598.93179295,0.00013917,2]
[332215038,1721043038579,-500.0,0.00013917,2]
[332215040,1721043038588,-501.3,0.00013918,2]
[332215042,1721043038598,-2358.93,0.00013918,2]
[332215044,1721043038609,-553.0,0.0001393,2]
[332215046,1721043038621,-525.23,0.00013964,2]
[332215048,1721043038630,-500.0,0.00013964,2]
[332215050,1721043038640,-500.0,0.00013971,2]
[332215052,1721043038651,-1154.78241149,0.00013971,2]
[332215054,1721043038663,-240.36758851,0.00013971,2]
[332215056,1721043038672,-886.33,0.00013972,2]
[332215058,1721043038682,-500.0,0.00013972,2]
[332215060,1721043038694,-500.0,0.00013972,2]
[332215062,1721043038704,-500.0,0.00013972,2]
[332215064,1721043038714,-500.0,0.00013972,2]
[332215066,1721043038723,-500.0,0.00013972,2]
[332215068,1721043038733,-500.0,0.00013972,2]
[332215070,1721043038742,-501.3,0.00013973,2]
[332215072,1721043038752,-2000.30681092,0.00013973,2]
[332215074,1721043038763,-358.62318908,0.00013973,2]
[332215076,1721043038772,-10878.21975147,0.0001399,2]
[332215079,1721043038787,-914.0500234,0.0001399,2]
[332215081,1721043038798,-2166.78342138,0.0001399,2]
[332215083,1721043038809,-11911.24209814,0.0001399,2]
[332215193,1721043039775,-1070.81536221,0.0001399,2]
[332215196,1721043039787,-441.48538942,0.0001399,2]
[332215199,1721043039799,-45492.75619213,0.0001399,2]
[332215221,1721043039910,-2954.1894928,0.0001399,2]
[332215226,1721043039952,-630.25841339,0.0001399,2]
[332215231,1721043039991,-662.70634916,0.0001399,2]
[332215233,1721043040003,-499.30965956,0.0001399,2]
[332215245,1721043040121,-1400.61890924,0.0001399,2]
[332215247,1721043040130,-33274.25616455,0.0001399,2]
[332215249,1721043040142,-3383.5,0.0001399,2]
[332215251,1721043040153,-54098.61770485,0.0001399,2]
[332215253,1721043040162,-850.97790488,0.0001399,2]
[332215510,1721043042850,-616.92384194,0.00013849,2]
[332215512,1721043042859,-1463.75615806,0.0001399,2]
[332215515,1721043042871,-955.62140526,0.0001399,2]
[332215517,1721043042882,-2724.565046,0.0001399,2]
[332215558,1721043043259,-18007.05712273,0.0001399,2]
[332215561,1721043043282,-925.50594997,0.0001399,2]
[332215564,1721043043297,-77562.8290896,0.0001399,2]
[332215566,1721043043306,-12400.3767988,0.0001399,2]
[332215568,1721043043315,-14241.6926533,0.0001399,2]
[332215570,1721043043324,-16083.0085078,0.0001399,2]
[332215572,1721043043333,-2249.0129236,0.0001399,2]
[332215574,1721043043343,-2435.0834941,0.00013995,2]
[332215576,1721043043352,-191.95387945,0.00013999,2]
[332215577,1721043043361,-9010.34288244,0.00014,2]
[332215579,1721043043371,-120002.60567749,0.00014,2]
[332215581,1721043043380,-310.09608087,0.00014,2]
[332215582,1721043043390,-169584.72956912,0.00014,2]
[332215809,1721043045799,-9717.69075686,0.000139,2]
[332215812,1721043045809,-607.76885459,0.00014,2]
[332215820,1721043045859,-1836.60756515,0.00014,2]
[332215822,1721043045870,-65800.44831967,0.00014,2]
[332215824,1721043045882,-5964.68591351,0.00014,2]
[332215826,1721043045893,-1057.20209729,0.00014,2]
[332215842,1721043046039,-27777.27753824,0.00014,2]
[332215874,1721043057003,154.36636686,0.00027,120]
[332215881,1721043197121,1397.75249659,9.927e-05,2]
[332215884,1721043278460,-15932.949,0.00010027,2]
[332215885,1721043278481,-17267.051,0.00011199,2]
[332215886,1721043286156,18806.76171158,9.927e-05,2]
[332215887,1721043316162,18806.76171158,9.927e-05,2]
[332215889,1721043344154,948.1535,9.926e-05,2]
[332215935,1721044231911,-451.65,0.0001077,2]
[332215936,1721044231921,-150.0,0.00011068,2]
[332215937,1721044231931,-300.0,0.00011096,2]
[332215939,1721044231942,-63.76908988,0.00011096,2]
[332215941,1721044231955,-236.23091012,0.00011096,2]
[332215942,1721044231968,-110.25212682,0.00011097,2]
[332215943,1721044231979,-39.74787318,0.00011097,2]
[332215944,1721044231988,-3931.32236682,0.00011097,2]
[332215945,1721044231999,-3832.64287863,0.00011097,2]
[332215946,1721044232013,-1423.33234626,0.00011097,2]
[332215947,1721044232022,-172.99391945,0.00011098,2]
[332215948,1721044232032,-358.85703166,0.00011098,2]
[332215949,1721044232042,-254.10536199,0.00011098,2]
[332215950,1721044232051,-155.12477012,0.00011098,2]
[332215951,1721044232061,-263.65679247,0.00011098,2]
[332215952,1721044232070,-569.39787187,0.00011098,2]
[332215953,1721044232080,-317.20322362,0.00011098,2]
[332215954,1721044232089,-551.48960694,0.00011098,2]
[332215955,1721044232098,-158.75541604,0.00011098,2]
[332215956,1721044232107,-5605.08175338,0.00011098,2]
[332215957,1721044232116,-4368.30715849,0.00011199,2]
[332215958,1721044232128,-6410.59854312,0.00011199,2]
[332215959,1721044232137,-243.85105627,0.00011199,2]
[332215960,1721044232146,-14896.09904963,0.00012031,2]
[332215961,1721044232155,-420.0,0.00012192,2]
[332215962,1721044232169,-23900.0,0.00012559,2]
[332215963,1721044232179,-29.18875833,0.00012662,2]
[332215964,1721044232194,-168.48124167,0.00012662,2]
[332215965,1721044232203,-171.9,0.00012699,2]
[332215966,1721044232212,-706.33,0.00012699,2]
[332215967,1721044232221,-1000.0,0.00012708,2]
[332215968,1721044232231,-250.0,0.00012743,2]
[332215969,1721044232240,-250.0,0.0001278,2]
[332215970,1721044232249,-9999.99,0.0001278,2]
[332215971,1721044232259,-182.65,0.00012794,2]
[332215972,1721044232268,-344.4,0.00012912,2]
[332215973,1721044232277,-1250.0,0.00013,2]
[332215974,1721044232287,-1685.0,0.00013,3]
[332215975,1721044232296,-451.65,0.00013034,2]
[332215976,1721044232305,-371.1851228,0.00013128,2]
[332215977,1721044232314,-188.85,0.00013209,2]
[332215978,1721044232323,-158.61,0.00013278,2]
[332215979,1721044232332,-178.11,0.00013342,2]
[332215980,1721044232342,-587.0,0.00013396,2]
[332215981,1721044232351,-22998.29020905,0.00013472,2]
[332215982,1721044232361,-1762.6488,0.0001366,2]
[332215983,1721044232370,-500.0,0.00013698,2]
[332215984,1721044232379,-500.0,0.00013699,2]
[332215985,1721044232388,-197.85,0.00013699,2]
[332215986,1721044232397,-3138.41,0.00013699,2]
[332215987,1721044232406,-2148.51,0.00013699,2]
[332215988,1721044232415,-250.0,0.00013699,2]
[332215989,1721044232425,-2751.0,0.00013699,2]
[332215990,1721044232434,-567.6995192,0.00013699,2]
[332215991,1721044232445,-500.0,0.00013699,2]
[332215992,1721044232454,-500.0,0.00013699,2]
[332215993,1721044232464,-165.14221528,0.00013699,2]
[332215994,1721044232472,-500.0,0.00013699,2]
[332215995,1721044232482,-726.54,0.00013699,2]
[332215996,1721044232490,-500.0,0.00013753,2]
[332215997,1721044232500,-500.0,0.00013754,2]
[332215998,1721044232510,-726.54,0.00013754,2]
[332215999,1721044232519,-1830.0,0.0001376,2]
[332216000,1721044232528,-361.0,0.0001376,2]
[332216001,1721044232538,-1251.0,0.0001376,2]
[332216002,1721044232548,-1660.0,0.0001376,2]
[332216003,1721044232557,-449.0,0.0001376,2]
[332216004,1721044232566,-1304.0,0.0001376,2]
[332216005,1721044232575,-150.0,0.0001376,2]
[332216006,1721044232585,-2378.0,0.0001376,2]
[332216007,1721044232594,-549.0,0.0001376,2]
[332216008,1721044232603,-3277.0,0.0001376,2]
[332216009,1721044232613,-1990.0,0.0001376,2]
[332216010,1721044232622,-5182.0,0.0001376,2]
[332216011,1721044232631,-1200.0,0.0001376,2]
[332216012,1721044232640,-1666.0,0.0001376,2]
[332216013,1721044232649,-32043.017,0.0001376,2]
[332216014,1721044232660,-5817.0,0.0001376,2]
[332216015,1721044232674,-176.61597519,0.00013799,2]
[332216016,1721044232684,-176.61597518,0.00013799,2]
[332216017,1721044232693,-176.61597518,0.00013799,2]
[332216018,1721044232703,-500.0,0.00013808,2]
[332216019,1721044232712,-500.0,0.00013809,2]
[332216020,1721044232721,-726.54,0.00013809,2]
[332216021,1721044232731,-176.61597518,0.0001384,2]
[332216022,1721044232740,-19673.28984762,0.0001386,2]
[332216023,1721044232749,-437.45700823,0.00013863,2]
[332216024,1721044232759,-500.0,0.00013864,2]
[332216025,1721044232768,-726.54,0.00013864,2]
[332216026,1721044232778,-500.0,0.00013888,2]
[332216027,1721044232787,-200.0,0.00013888,2]
[332216028,1721044232796,-155.0,0.00013889,2]
[332216029,1721044232805,-9842.2376,0.0001389,2]
[332216030,1721044232815,-427.00309726,0.00013895,2]
[332216031,1721044232824,-1684.7492,0.00013895,2]
[332216032,1721044232834,-427.00309723,0.00013896,2]
[332216033,1721044232843,-427.00309723,0.00013896,2]
[332216034,1721044232853,-427.00309723,0.00013897,2]
[332216035,1721044232862,-427.00309723,0.00013898,2]
[332216036,1721044232871,-427.00309723,0.00013899,2]
[332216037,1721044232881,-311.3954935,0.00013899,2]
[332216038,1721044232890,-427.00309723,0.00013899,2]
[332216039,1721044232899,-1000.0,0.000139,2]
[332216040,1721044232909,-1000.0,0.000139,2]
[332216041,1721044232921,-9062.7068,0.000139,2]
[332216042,1721044232930,-473.0,0.000139,3]
[332216043,1721044232939,-1000.0,0.000139,3]
[332216044,1721044232949,-1000.0,0.000139,3]
[332216045,1721044232958,-1000.0,0.000139,2]
[332216046,1721044232971,-1000.0,0.000139,2]
[332216047,1721044232980,-1000.0,0.000139,2]
[332216048,1721044232989,-192.40825381,0.000139,2]
[332216049,1721044232999,-176.61597518,0.000139,2]
[332216050,1721044233009,-427.00309723,0.000139,2]
[332216051,1721044233019,-1257.0,0.000139,2]
[332216052,1721044233028,-1604.14463227,0.000139,2]
[332216053,1721044233038,-500.0,0.00013918,2]
[332216054,1721044233048,-726.54,0.00013918,2]
[332216055,1721044233057,-292.33396336,0.00013952,2]
[332216056,1721044233067,-1440.642552,0.00013973,2]
[332216057,1721044233076,-500.0,0.00013973,2]
[332216058,1721044233085,-726.54,0.00013973,2]
[332216059,1721044233094,-500.0,0.00013988,2]
[332216060,1721044233103,-500.0,0.00013988,2]
[332216061,1721044233113,-500.0,0.00013988,2]
[332216062,1721044233122,-1074.21,0.00013988,2]
[332216063,1721044233131,-2402.97991171,0.00013989,3]
[332216064,1721044233140,-161.57771743,0.00013989,2]
[332216065,1721044233149,-1164.63,0.00013989,2]
[332216066,1721044233158,-500.0,0.00013989,2]
[332216067,1721044233170,-1029.84853359,0.0001399,3]
[332216068,1721044233179,-161.57771743,0.0001399,2]
[332216069,1721044233189,-161.57771743,0.0001399,2]
[332216070,1721044233198,-698.97,0.00013994,2]
[332216071,1721044233207,-500.0,0.00013994,2]
[332216072,1721044233216,-229.5,0.00013994,2]
[332216073,1721044233225,-500.0,0.00013994,2]
[332216074,1721044233234,-500.0,0.00013994,2]
[332216075,1721044233244,-3618.0179873,0.00013995,2]
[332216076,1721044233254,-6436.0463733,0.00013995,2]
[332216077,1721044233264,-34072.1440801,0.00013995,2]
[332216078,1721044233273,-6742.5948754,0.00013995,2]
[332216079,1721044233283,-385.52510786,0.00013998,2]
[332216080,1721044233293,-500.0,0.00013998,2]
[332216081,1721044233302,-500.0,0.00013998,2]
[332216082,1721044233311,-500.0,0.00013998,2]
[332216083,1721044233320,-500.0,0.00013998,2]
[332216084,1721044233330,-500.0,0.00013998,2]
[332216085,1721044233339,-500.0,0.00013998,2]
[332216086,1721044233348,-500.0,0.00013998,2]
[332216087,1721044233358,-500.0,0.00013998,2]
[332216088,1721044233367,-500.0,0.00013998,2]
[332216089,1721044233376,-500.0,0.00013998,2]
[332216090,1721044233385,-151.16533254,0.00013998,2]
[332216091,1721044233395,-500.0,0.00013998,2]
[332216092,1721044233405,-500.0,0.00013998,2]
[332216093,1721044233416,-500.0,0.00013998,2]
[332216094,1721044233426,-500.0,0.00013998,2]
[332216095,1721044233435,-500.0,0.00013998,2]
[332216096,1721044233445,-500.0,0.00013998,2]
[332216097,1721044233454,-500.0,0.00013998,2]
[332216098,1721044233464,-500.0,0.00013998,2]
[332216099,1721044233473,-500.0,0.00013998,2]
[332216100,1721044233483,-500.0,0.00013998,2]
[332216101,1721044233492,-191.95387945,0.00013999,2]
[332216102,1721044233501,-419.68897429,0.00013999,2]
[332216103,1721044233511,-692770.91907037,0.00013999,2]
[332216104,1721044233520,-524.0,0.00013999,2]
[332216105,1721044233530,-6757.75716183,0.00014,2]
[332216106,1721044233539,-162587.60853583,0.00014,2]
[332216107,1721044233553,-250.33780553,0.00014,2]
[332216108,1721044233565,-1004.35381733,0.00014,2]
[332216109,1721044233576,-33601.94762821,0.00014,2]
[332216110,1721044233587,-570.09,0.00014,2]
[332216111,1721044233598,-2167.0181534,0.00014,2]
[332216112,1721044233610,-871.5527439,0.00014,2]
[332216113,1721044233621,-2507.5411017,0.00014,2]
[332216114,1721044233632,-1261.02900317,0.00014,2]
[332216115,1721044233643,-2411.95134433,0.00014,2]
[332216116,1721044233655,-898.53028455,0.00014,2]
[332216117,1721044233666,-947.56950504,0.00014,2]
[332216118,1721044233682,-3378.90602154,0.00014,2]
[332216119,1721044233693,-3062.23394793,0.00014,2]
[332216120,1721044233705,-1200.22252239,0.00014,2]
[332216121,1721044233716,-5728.92891518,0.00014,2]
[332216122,1721044233727,-1357.62885533,0.00014,2]
[332216123,1721044233739,-3182.66143813,0.00014,2]
[332216124,1721044233750,-950.90717399,0.00014,2]
[332216125,1721044233761,-967.08683004,0.00014,2]
[332216126,1721044233773,-923472.05985004,0.00014,2]
[332216127,1721044233788,-1331.32137545,0.00014,2]
[332216128,1721044233799,-147583.04260755,0.00014,2]
[332216129,1721044233810,-20933.11821038,0.00014,2]
[332216130,1721044233821,-15630.06330201,0.00014,2]
[332216135,1721044237973,-358.48667185,0.0001376,2]
[332216136,1721044237987,-712.51332815,0.0001376,2]
[332216137,1721044237997,-755.58438261,0.00013899,2]
[332216138,1721044238007,-8413.8945141,0.00014,2]
[332216139,1721044238019,-7768.1384,0.00014,2]
[332216140,1721044238031,-7146.2938,0.00014,2]
[332216141,1721044238044,-18261.65070178,0.00014,2]
[332216142,1721044238066,-603.45575644,0.00014,2]
[332216143,1721044238077,-910.60655848,0.00014,2]
[332216144,1721044238090,-573.2828905,0.00014,2]
[332216145,1721044238565,-1169.55400002,0.00014,2]
[332216146,1721044238778,-858.90753302,0.00014,2]
[332216147,1721044238790,-822.49017547,0.00014,2]
[332216148,1721044238801,-399.70833916,0.00014,2]
[332216267,1721044239947,-639.09988034,0.000139,2]
[332216283,1721044240057,-116.48450225,0.000139,2]
[332216285,1721044240067,-551.88549775,0.00014,2]
[332216287,1721044240078,-116489.8771463,0.00014,2]
[332216289,1721044240087,-218131.02446059,0.00014,2]
[332216293,1721044240110,-24193.88885176,0.00014,2]
[332216295,1721044240121,-1077.57535404,0.00014,2]
[332216297,1721044240132,-313.49198721,0.00014,2]
[332216299,1721044240143,-417.17695916,0.00014,2]
[332216300,1721044240154,-52787.3606105,0.00014,2]
[332216301,1721044240165,-657.79836897,0.00014,2]
[332216596,1721044243049,-915.43335499,0.00014,2]
[332216598,1721044243061,-4330.59626476,0.00014,2]
[332216615,1721044243155,-630.04179428,0.00014,2]
[332216622,1721044243209,-7160.00000002,0.00014,2]
[332216624,1721044243219,-5966.6050798,0.00014,2]
[332216934,1721044245984,-493.706,0.000139,2]
[332216936,1721044245996,-261.87838259,0.000139,2]
[332216938,1721044246006,-17.94700877,0.00014,2]
[332216940,1721044246017,-292.775,0.00014,2]
[332216944,1721044246041,-445.82218307,0.00014,2]
[332216946,1721044246053,-649.99877428,0.00014,2]
[332216948,1721044246065,-504.60282079,0.00014,2]
[332216953,1721044246099,-1000.0,0.00014,2]
[332216955,1721044246110,-2240.82649544,0.00014,2]
[332216960,1721044246151,-1235.87774031,0.00014,2]
[332216962,1721044246163,-13540.258555,0.00014,2]
[332216967,1721044246198,-20359.84992364,0.00014,2]
[332216969,1721044246209,-4385.38797201,0.00014,2]
[332216971,1721044246220,-711.38074383,0.00014,2]
[332216978,1721044246279,-45192.60432892,0.00014,2]
[332216982,1721044246314,-1749.91574108,0.00014,2]
[332216984,1721044246325,-3761.40352374,0.00014,2]
[332218466,1721044769247,-430.05,0.00011066,2]
[332218467,1721044769269,-281.00378493,0.00011097,2]
[332218468,1721044769290,-2145.90375938,0.00011098,2]
[332218469,1721044769312,-202.60874976,0.00011098,2]
[332218470,1721044769333,-1963.82814303,0.00011098,2]
[332218471,1721044769355,-15451.9318012,0.00011199,2]
[332218476,1721044833934,4524.6737617,0.00011199,2]
[332218489,1721045432228,-408.54,0.0001091,2]
[332218490,1721045432237,-255.49948097,0.00011,2]
[332218491,1721045432249,-744.50051902,0.00011,2]
[332218492,1721045432258,-2620.3677818,0.00011097,2]
[332218493,1721045432283,-6625.44392527,0.00011097,2]
[332218494,1721045432292,-3375.26665066,0.00011098,2]
[332218495,1721045432301,-2449.00813127,0.00011199,2]
[332218496,1721045432391,-6949.17054274,0.00011199,2]
[332218504,1721045438157,-400.0,0.00011199,2]
[332218505,1721045438370,-2272.91680069,0.00011199,2]
[332218506,1721045438381,-2773.28413778,0.00011199,2]